fUST/lending_fUST_20250729
["ID","MTS","AMOUNT","RATE_DAILY","PERIOD"]
[375935355,1753789872038,-151.0,0.0002137,2]
[375935356,1753789872144,-500.0,0.0002137,2]
[375935357,1753789872154,-500.0,0.0002137,2]
[375935358,1753789872164,-151.0,0.0002137,2]
[375935359,1753789872173,-151.0,0.0002137,2]
[375935360,1753789872187,-622.0,0.0002137,2]
[375935361,1753789872203,-151.0,0.0002137,2]
[375935362,1753789872212,-241.21423541,0.0002137,2]
[375935363,1753789872222,-500.0,0.0002137,2]
[375935364,1753789872234,-1720.0,0.00021394,2]
[375935365,1753789872244,-203.58229513,0.000214,5]
[375935366,1753789872254,-761.0,0.00021506,2]
[375935367,1753789872263,-203.58229513,0.00021507,5]
[375935368,1753789872272,-500.0,0.00021538,2]
[375935369,1753789872282,-1628.4,0.00021547,4]
[375935370,1753789872291,-500.0,0.0002159,2]
[375935371,1753789872300,-167770.13987873,0.00021614,2]
[375935372,1753789872310,-151.0,0.00021614,2]
[375935373,1753789872319,-151.0,0.00021614,2]
[375935374,1753789872328,-151.0,0.00021614,2]
[375935375,1753789872338,-151.0,0.00021614,2]
[375935376,1753789872348,-151.0,0.00021614,2]
[375935377,1753789872358,-151.0,0.00021614,2]
[375935378,1753789872370,-161.471678,0.00021614,2]
[375935379,1753789872379,-161.471678,0.00021614,2]
[375935380,1753789872388,-151.0,0.00021614,2]
[375935381,1753789872397,-198.551817,0.00021614,2]
[375935382,1753789872407,-198.551817,0.00021614,2]
[375935383,1753789872417,-151.0,0.00021614,2]
[375935384,1753789872426,-151.0,0.00021614,2]
[375935385,1753789872435,-364.300892,0.00021614,2]
[375935386,1753789872444,-364.300892,0.00021614,2]
[375935387,1753789872453,-164.268075,0.00021614,2]
[375935388,1753789872462,-164.268075,0.00021614,2]
[375935389,1753789872472,-151.0,0.00021614,2]
[375935390,1753789872481,-151.0,0.00021614,2]
[375935391,1753789872492,-151.0,0.00021614,2]
[375935392,1753789872501,-151.0,0.00021614,2]
[375935393,1753789872511,-322.072395,0.00021614,2]
[375935394,1753789872520,-322.072395,0.00021614,2]
[375935395,1753789872529,-151.0,0.00021614,2]
[375935396,1753789872538,-257.700081,0.00021614,2]
[375935397,1753789872547,-257.700081,0.00021614,2]
[375935398,1753789872558,-334.068826,0.00021614,2]
[375935399,1753789872567,-153.363126,0.00021614,2]
[375935400,1753789872577,-151.0,0.00021614,2]
[375935401,1753789872587,-212.322871,0.00021614,2]
[375935402,1753789872599,-212.322871,0.00021614,2]
[375935403,1753789872608,-279.880238,0.00021614,2]
[375935404,1753789872618,-279.880238,0.00021614,2]
[375935405,1753789872627,-151.0,0.00021614,2]
[375935406,1753789872636,-202.271616,0.00021614,2]
[375935407,1753789872646,-943.829808,0.00021614,2]
[375935408,1753789872655,-943.829808,0.00021614,2]
[375935409,1753789872665,-202.271616,0.00021614,2]
[375935410,1753789872676,-151.0,0.00021614,2]
[375935411,1753789872685,-151.0,0.00021614,2]
[375935412,1753789872694,-659.982398,0.00021614,2]
[375935413,1753789872704,-659.982398,0.00021614,2]
[375935414,1753789872713,-151.0,0.00021614,2]
[375935415,1753789872723,-151.0,0.00021614,2]
[375935416,1753789872732,-298.776502,0.00021614,2]
[375935417,1753789872741,-298.776502,0.00021614,2]
[375935418,1753789872750,-152.278939,0.00021614,2]
[375935419,1753789872760,-151.0,0.00021614,2]
[375935420,1753789872769,-151.0,0.00021614,2]
[375935421,1753789872778,-151.0,0.00021614,2]
[375935422,1753789872787,-151.0,0.00021614,2]
[375935423,1753789872797,-151.0,0.00021614,2]
[375935424,1753789872808,-151.0,0.00021614,2]
[375935425,1753789872818,-151.0,0.00021614,2]
[375935426,1753789872827,-260.641885,0.00021614,2]
[375935427,1753789872836,-260.641885,0.00021614,2]
[375935428,1753789872846,-203.58229513,0.00021614,5]
[375935429,1753789872855,-460.0,0.00021629,2]
[375935430,1753789872864,-208.63518884,0.00021643,2]
[375935431,1753789872873,-739.38969172,0.00021643,2]
[375935432,1753789872882,-833.70621459,0.00021643,2]
[375935433,1753789872891,-2954.6012081,0.00021643,2]
[375935434,1753789872901,-151.0,0.00021643,2]
[375935435,1753789872910,-151.0,0.00021643,2]
[375935436,1753789872919,-460.0,0.00021643,2]
[375935437,1753789872929,-531.77,0.00021643,2]
[375935438,1753789872938,-460.0,0.00021643,2]
[375935439,1753789872947,-516.37885623,0.00021643,2]
[375935440,1753789872957,-2951.75,0.00021643,2]
[375935441,1753789872967,-460.0,0.00021643,2]
[375935442,1753789872976,-460.0,0.00021643,2]
[375935443,1753789872985,-460.0,0.00021643,2]
[375935444,1753789872995,-460.0,0.00021643,2]
[375935445,1753789873004,-460.0,0.00021643,2]
[375935446,1753789873014,-1137.75,0.00021643,2]
[375935447,1753789873023,-460.0,0.00021643,2]
[375935448,1753789873032,-988.39,0.00021643,2]
[375935449,1753789873042,-1046.97,0.00021643,2]
[375935450,1753789873053,-549.29,0.00021643,2]
[375935451,1753789873062,-460.0,0.00021643,2]
[375935452,1753789873071,-460.0,0.00021643,2]
[375935453,1753789873081,-607.06,0.00021643,2]
[375935454,1753789873090,-460.0,0.00021643,2]
[375935455,1753789873100,-460.0,0.00021643,2]
[375935456,1753789873109,-1212.83,0.00021643,2]
[375935457,1753789873119,-483.89,0.00021643,2]
[375935458,1753789873128,-151.0,0.00021643,2]
[375935459,1753789873138,-460.0,0.00021643,2]
[375935460,1753789873148,-460.0,0.00021643,2]
[375935461,1753789873157,-520.19,0.00021643,2]
[375935462,1753789873166,-460.0,0.00021643,2]
[375935463,1753789873176,-460.0,0.00021643,2]
[375935464,1753789873187,-460.0,0.00021643,2]
[375935465,1753789873197,-1191.09,0.00021643,2]
[375935466,1753789873206,-460.0,0.00021643,2]
[375935467,1753789873216,-641.57,0.00021643,2]
[375935468,1753789873225,-460.0,0.00021643,2]
[375935469,1753789873234,-460.0,0.00021643,2]
[375935470,1753789873244,-535.87,0.00021643,2]
[375935471,1753789873254,-460.0,0.00021643,2]
[375935472,1753789873264,-460.0,0.00021643,2]
[375935473,1753789873274,-460.0,0.00021643,2]
[375935474,1753789873284,-460.0,0.00021643,2]
[375935475,1753789873294,-598.64,0.00021643,2]
[375935476,1753789873304,-460.0,0.00021643,2]
[375935477,1753789873314,-9380.1,0.00021643,2]
[375935478,1753789873324,-460.0,0.00021643,2]
[375935479,1753789873333,-460.0,0.00021643,2]
[375935480,1753789873343,-1276.59,0.00021643,2]
[375935481,1753789873352,-928.19,0.00021643,2]
[375935482,1753789873363,-460.0,0.00021643,2]
[375935483,1753789873375,-846.71,0.00021643,2]
[375935484,1753789873385,-2693.2,0.00021643,2]
[375935485,1753789873395,-825.13,0.00021643,2]
[375935486,1753789873408,-837.76,0.00021643,2]
[375935487,1753789873423,-617.47,0.00021643,2]
[375935488,1753789873433,-2092.34,0.00021643,2]
[375935489,1753789873444,-460.0,0.00021643,2]
[375935490,1753789873454,-460.0,0.00021643,2]
[375935491,1753789873464,-867.33,0.00021643,2]
[375935492,1753789873474,-589.02,0.00021643,2]
[375935493,1753789873484,-460.0,0.00021643,2]
[375935494,1753789873494,-460.0,0.00021643,2]
[375935495,1753789873503,-1155.43,0.00021643,2]
[375935496,1753789873512,-4863.03,0.00021643,2]
[375935497,1753789873522,-3727.89,0.00021643,2]
[375935498,1753789873532,-726.78,0.00021643,2]
[375935499,1753789873541,-460.0,0.00021643,2]
[375935500,1753789873551,-460.0,0.00021643,2]
[375935501,1753789873560,-460.0,0.00021643,2]
[375935502,1753789873570,-945.31,0.00021643,2]
[375935503,1753789873580,-699.09,0.00021643,2]
[375935504,1753789873591,-1744.36,0.00021643,2]
[375935505,1753789873603,-897.47,0.00021643,2]
[375935506,1753789873612,-651.49,0.00021643,2]
[375935507,1753789873622,-3167.08,0.00021643,2]
[375935508,1753789873632,-2562.78,0.00021643,2]
[375935509,1753789873643,-460.0,0.00021643,2]
[375935510,1753789873652,-460.0,0.00021643,2]
[375935511,1753789873663,-4276.31,0.00021643,2]
[375935512,1753789873673,-460.0,0.00021643,2]
[375935513,1753789873682,-1229.01,0.00021643,2]
[375935514,1753789873692,-1266.27,0.00021643,2]
[375935515,1753789873702,-460.0,0.00021643,2]
[375935516,1753789873711,-538.69,0.00021643,2]
[375935517,1753789873720,-1281.25445265,0.00021643,2]
[375935518,1753789873945,-1299.69554735,0.00021643,2]
[375935519,1753789873956,-598.73,0.00021643,2]
[375935520,1753789873967,-1327.36,0.00021643,2]
[375935521,1753789873977,-3072.41,0.00021643,2]
[375935522,1753789873987,-833.59,0.00021643,2]
[375935523,1753789873997,-460.0,0.00021643,2]
[375935524,1753789874008,-460.0,0.00021643,2]
[375935525,1753789874018,-460.0,0.00021643,2]
[375935526,1753789874028,-573.24,0.00021643,2]
[375935527,1753789874038,-627.39,0.00021643,2]
[375935528,1753789874047,-737.52,0.00021643,2]
[375935529,1753789874059,-1255.62,0.00021643,2]
[375935530,1753789874068,-670.19,0.00021643,2]
[375935531,1753789874077,-1060.03,0.00021643,2]
[375935532,1753789874092,-914.73,0.00021643,2]
[375935533,1753789874102,-8381.75,0.00021643,2]
[375935534,1753789874112,-460.0,0.00021643,2]
[375935535,1753789874121,-3580.4,0.00021643,2]
[375935536,1753789874131,-412.53262577,0.00021643,2]
[375935537,1753789874141,-1186.04,0.00021643,2]
[375935538,1753789874153,-460.0,0.00021643,2]
[375935539,1753789874163,-460.0,0.00021643,2]
[375935540,1753789874174,-4077.9,0.00021643,2]
[375935541,1753789874184,-879.31,0.00021643,2]
[375935542,1753789874194,-1017.32,0.00021643,2]
[375935543,1753789874207,-500.0,0.00021644,2]
[375935544,1753789874219,-500.0,0.00021644,2]
[375935545,1753789874230,-198.0,0.00021644,2]
[375935546,1753789874239,-500.0,0.00021644,2]
[375935547,1753789874249,-151.0,0.00021644,2]
[375935548,1753789874259,-151.0,0.00021644,2]
[375935549,1753789874268,-151.0,0.00021644,2]
[375935550,1753789874278,-500.0,0.00021644,2]
[375935551,1753789874288,-151.56985288,0.00021644,2]
[375935552,1753789874300,-151.0,0.00021644,2]
[375935553,1753789874309,-151.15841428,0.00021644,2]
[375935554,1753789874319,-151.0,0.00021644,2]
[375935555,1753789874329,-151.0,0.00021644,2]
[375935556,1753789874339,-151.0,0.00021644,2]
[375935557,1753789874349,-500.0,0.00021644,2]
[375935558,1753789874358,-500.0,0.00021644,2]
[375935559,1753789874367,-151.0,0.00021644,2]
[375935560,1753789874376,-151.0,0.00021644,2]
[375935561,1753789874387,-622.0,0.00021644,2]
[375935562,1753789874398,-276.90944129,0.00021644,2]
[375935563,1753789874408,-500.0,0.00021644,2]
[375935564,1753789874419,-203.58229513,0.00021721,5]
[375935565,1753789874428,-1720.0,0.00021726,2]
[375935566,1753789874438,-969.00258922,0.00021739,2]
[375935567,1753789874447,-150.0,0.00021822,2]
[375935568,1753789874458,-151.342,0.00021822,2]
[375935569,1753789874468,-150.17,0.00021822,2]
[375935570,1753789874478,-203.58229513,0.00021829,6]
[375935571,1753789874487,-1720.0,0.00021854,2]
[375935572,1753789874497,-151.0,0.00021917,2]
[375935573,1753789874506,-151.0,0.00021917,2]
[375935574,1753789874516,-460.0,0.00021917,2]
[375935575,1753789874525,-500.0,0.00021917,2]
[375935576,1753789874534,-500.0,0.00021917,2]
[375935577,1753789874543,-500.0,0.00021917,2]
[375935578,1753789874553,-500.0,0.00021917,2]
[375935579,1753789874563,-500.0,0.00021917,2]
[375935580,1753789874572,-500.0,0.00021917,2]
[375935581,1753789874582,-500.0,0.00021917,2]
[375935582,1753789874592,-500.0,0.00021917,2]
[375935583,1753789874605,-500.0,0.00021917,2]
[375935584,1753789874615,-500.0,0.00021917,2]
[375935585,1753789874624,-500.0,0.00021917,2]
[375935586,1753789874633,-531.77,0.00021917,2]
[375935587,1753789874643,-460.0,0.00021917,2]
[375935588,1753789874652,-2951.75,0.00021917,2]
[375935589,1753789874662,-460.0,0.00021917,2]
[375935590,1753789874671,-460.0,0.00021917,2]
[375935591,1753789874681,-460.0,0.00021917,2]
[375935592,1753789874691,-460.0,0.00021917,2]
[375935593,1753789874701,-460.0,0.00021917,2]
[375935594,1753789874710,-1137.75,0.00021917,2]
[375935595,1753789874720,-460.0,0.00021917,2]
[375935596,1753789874729,-988.39,0.00021917,2]
[375935597,1753789874739,-1046.97,0.00021917,2]
[375935598,1753789874748,-549.29,0.00021917,2]
[375935599,1753789874757,-460.0,0.00021917,2]
[375935600,1753789874766,-500.0,0.00021917,2]
[375935601,1753789874775,-500.0,0.00021917,2]
[375935602,1753789874784,-500.0,0.00021917,2]
[375935603,1753789874794,-500.0,0.00021917,2]
[375935604,1753789874805,-500.0,0.00021917,2]
[375935605,1753789874814,-500.0,0.00021917,2]
[375935606,1753789874823,-500.0,0.00021917,2]
[375935607,1753789874833,-500.0,0.00021917,2]
[375935608,1753789874843,-500.0,0.00021917,2]
[375935609,1753789874852,-500.0,0.00021917,2]
[375935610,1753789874861,-500.0,0.00021917,2]
[375935611,1753789874871,-460.0,0.00021917,2]
[375935612,1753789874881,-607.06,0.00021917,2]
[375935613,1753789874890,-460.0,0.00021917,2]
[375935614,1753789874900,-460.0,0.00021917,2]
[375935615,1753789874909,-1212.83,0.00021917,2]
[375935616,1753789874918,-483.89,0.00021917,2]
[375935617,1753789874928,-460.0,0.00021917,2]
[375935618,1753789874937,-460.0,0.00021917,2]
[375935619,1753789874947,-520.19,0.00021917,2]
[375935620,1753789874956,-460.0,0.00021917,2]
[375935621,1753789874965,-460.0,0.00021917,2]
[375935622,1753789874975,-460.0,0.00021917,2]
[375935623,1753789874985,-1191.09,0.00021917,2]
[375935624,1753789874994,-184.16247363,0.00021917,2]
[375935625,1753789875003,-641.57,0.00021917,2]
[375935626,1753789875012,-460.0,0.00021917,2]
[375935627,1753789875022,-460.0,0.00021917,2]
[375935628,1753789875031,-535.87,0.00021917,2]
[375935629,1753789875040,-344.97293541,0.00021917,2]
[375935630,1753789875051,-460.0,0.00021917,2]
[375935631,1753789875061,-460.0,0.00021917,2]
[375935632,1753789875070,-460.0,0.00021917,2]
[375935633,1753789875079,-598.64,0.00021917,2]
[375935634,1753789875089,-460.0,0.00021917,2]
[375935635,1753789875098,-9380.1,0.00021917,2]
[375935636,1753789875107,-460.0,0.00021917,2]
[375935637,1753789875116,-1276.59,0.00021917,2]
[375935638,1753789875125,-460.0,0.00021917,2]
[375935639,1753789875134,-928.19,0.00021917,2]
[375935640,1753789875144,-460.0,0.00021917,2]
[375935641,1753789875153,-846.71,0.00021917,2]
[375935642,1753789875162,-2693.2,0.00021917,2]
[375935643,1753789875172,-825.13,0.00021917,2]
[375935644,1753789875182,-837.76,0.00021917,2]
[375935645,1753789875191,-617.47,0.00021917,2]
[375935646,1753789875200,-2092.34,0.00021917,2]
[375935647,1753789875210,-460.0,0.00021917,2]
[375935648,1753789875219,-460.0,0.00021917,2]
[375935649,1753789875228,-867.33,0.00021917,2]
[375935650,1753789875237,-589.02,0.00021917,2]
[375935651,1753789875247,-460.0,0.00021917,2]
[375935652,1753789875256,-460.0,0.00021917,2]
[375935653,1753789875264,-1155.43,0.00021917,2]
[375935654,1753789875274,-4863.03,0.00021917,2]
[375935655,1753789875377,-3727.89,0.00021917,2]
[375935656,1753789875387,-726.78,0.00021917,2]
[375935657,1753789875396,-460.0,0.00021917,2]
[375935658,1753789875406,-460.0,0.00021917,2]
[375935659,1753789875415,-460.0,0.00021917,2]
[375935660,1753789875425,-945.31,0.00021917,2]
[375935661,1753789875435,-699.09,0.00021917,2]
[375935662,1753789875445,-1744.36,0.00021917,2]
[375935663,1753789875455,-897.47,0.00021917,2]
[375935664,1753789875464,-651.49,0.00021917,2]
[375935665,1753789875473,-2562.78,0.00021917,2]
[375935666,1753789875483,-3167.08,0.00021917,2]
[375935667,1753789875492,-460.0,0.00021917,2]
[375935668,1753789875501,-460.0,0.00021917,2]
[375935669,1753789875510,-4276.31,0.00021917,2]
[375935670,1753789875519,-460.0,0.00021917,2]
[375935671,1753789875529,-1229.01,0.00021917,2]
[375935672,1753789875538,-1266.27,0.00021917,2]
[375935673,1753789875548,-460.0,0.00021917,2]
[375935674,1753789875559,-538.69,0.00021917,2]
[375935675,1753789875569,-2580.95,0.00021917,2]
[375935676,1753789875578,-598.73,0.00021917,2]
[375935677,1753789875588,-1327.36,0.00021917,2]
[375935678,1753789875600,-3072.41,0.00021917,2]
[375935679,1753789875610,-833.59,0.00021917,2]
[375935680,1753789875619,-460.0,0.00021917,2]
[375935681,1753789875629,-460.0,0.00021917,2]
[375935682,1753789875640,-573.24,0.00021917,2]
[375935683,1753789875649,-627.39,0.00021917,2]
[375935684,1753789875659,-737.52,0.00021917,2]
[375935685,1753789875669,-1255.62,0.00021917,2]
[375935686,1753789875680,-670.19,0.00021917,2]
[375935687,1753789875690,-1060.03,0.00021917,2]
[375935688,1753789875699,-914.73,0.00021917,2]
[375935689,1753789875709,-8381.75,0.00021917,2]
[375935690,1753789875718,-460.0,0.00021917,2]
[375935691,1753789875728,-3580.4,0.00021917,2]
[375935692,1753789875737,-1186.04,0.00021917,2]
[375935693,1753789875747,-460.0,0.00021917,2]
[375935694,1753789875756,-460.0,0.00021917,2]
[375935695,1753789875766,-4077.9,0.00021917,2]
[375935696,1753789875776,-879.31,0.00021917,2]
[375935697,1753789875786,-1017.32,0.00021917,2]
[375935698,1753789875795,-306.04821,0.00021918,2]
[375935699,1753789875804,-306.04821,0.00021918,2]
[375935700,1753789875813,-306.04821,0.00021918,2]
[375935701,1753789875822,-306.04821,0.00021918,2]
[375935702,1753789875832,-306.04821,0.00021918,2]
[375935703,1753789875841,-306.04821,0.00021918,2]
[375935704,1753789875850,-306.04821,0.00021918,2]
[375935705,1753789875859,-306.04821,0.00021918,2]
[375935706,1753789875869,-306.04821,0.00021918,2]
[375935707,1753789875878,-306.04821,0.00021918,2]
[375935708,1753789875887,-306.04821,0.00021918,2]
[375935709,1753789875896,-306.04821,0.00021918,2]
[375935710,1753789875906,-306.04821,0.00021918,2]
[375935711,1753789875916,-306.04821,0.00021918,2]
[375935712,1753789875927,-150.0,0.00021918,2]
[375935713,1753789875938,-152.0,0.00021918,2]
[375935714,1753789875949,-152.0,0.00021918,2]
[375935715,1753789875958,-154.1640909,0.00021918,2]
[375935716,1753789875968,-152.0,0.00021918,2]
[375935717,1753789875978,-255.96768648,0.00021918,2]
[375935718,1753789875988,-152.0,0.00021918,2]
[375935719,1753789875997,-152.0,0.00021918,2]
[375935720,1753789876006,-152.0,0.00021918,2]
[375935721,1753789876016,-152.0,0.00021918,2]
[375935722,1753789876027,-152.0,0.00021918,2]
[375935723,1753789876038,-152.0,0.00021918,2]
[375935724,1753789876048,-150.0,0.00021918,2]
[375935725,1753789876059,-150.08466994,0.00021918,2]
[375935726,1753789876068,-200.0,0.00021918,2]
[375935727,1753789876083,-602.24277656,0.00021918,2]
[375935728,1753789876103,-500.0,0.00021918,2]
[375935729,1753789876124,-205.5461917,0.00021918,2]
[375935730,1753789876144,-151.0,0.00021918,2]
[375935731,1753789876165,-151.0,0.00021918,2]
[375935732,1753789876183,-271.76297711,0.00021918,2]
[375935733,1753789876201,-415.56299922,0.00021918,2]
[375935734,1753789876218,-151.0,0.00021918,2]
[375935735,1753789876233,-500.0,0.00021918,2]
[375935736,1753789876252,-500.0,0.00021918,2]
[375935737,1753789876271,-290.54900114,0.00021918,2]
[375935738,1753789876287,-151.0,0.00021918,2]
[375935739,1753789876301,-622.0,0.00021918,2]
[375935740,1753789876322,-500.0,0.00021918,2]
[375935741,1753789876336,-298.776502,0.00021918,7]
[375935742,1753789876351,-298.776502,0.00021918,7]
[375935743,1753789876365,-500.0,0.00021918,2]
[375935744,1753789876379,-500.0,0.00021918,2]
[375935745,1753789876394,-488.46604209,0.00021918,2]
[375935746,1753789876410,-151.0,0.00021918,7]
[375935747,1753789876427,-306.04821,0.00021918,7]
[375935748,1753789876442,-306.04821,0.00021918,7]
[375935749,1753789876456,-154.61522,0.0002192,7]
[375935750,1753789876470,-260.641885,0.0002192,7]
[375935751,1753789876485,-260.641885,0.0002192,7]
[375935752,1753789876500,-227.82,0.0002192,4]
[375935753,1753789876514,-177.195184,0.0002192,4]
[375935754,1753789876529,-177.195184,0.0002192,4]
[375935755,1753789876544,-177.19,0.0002192,4]
[375935756,1753789876559,-175.75752265,0.0002192,4]
[375935757,1753789876574,-175.75752265,0.0002192,4]
[375935758,1753789876588,-175.75752265,0.0002192,4]
[375935759,1753789876600,-175.75,0.0002192,4]
[375935760,1753789876610,-164.04035447,0.0002192,4]
[375935761,1753789876619,-164.04035447,0.0002192,4]
[375935762,1753789876628,-164.04035447,0.0002192,4]
[375935763,1753789876639,-164.04035447,0.0002192,4]
[375935764,1753789876648,-164.04035447,0.0002192,4]
[375935765,1753789876658,-164.04035447,0.0002192,4]
[375935766,1753789876668,-164.04035447,0.0002192,4]
[375935767,1753789876680,-164.04035447,0.0002192,4]
[375935768,1753789876690,-164.04035447,0.0002192,4]
[375935769,1753789876700,-164.04,0.0002192,4]
[375935770,1753789876710,-203.58229513,0.00021936,6]
[375935771,1753789876719,-151.0,0.00021943,7]
[375935772,1753789876728,-1720.0,0.00021943,2]
[375935773,1753789876738,-151.0,0.00021948,7]
[375935774,1753789876748,-219.700084,0.00021948,7]
[375935775,1753789876757,-1720.0,0.00021948,2]
[375935776,1753789876767,-151.0,0.00021998,7]
[375935777,1753789876776,-152.260752,0.00021998,7]
[375935778,1753789876786,-151.0,0.00021998,7]
[375935779,1753789876795,-308.777728,0.00021998,7]
[375935780,1753789876804,-308.777728,0.00021998,7]
[375935781,1753789876815,-2277.15370638,0.00022,3]
[375935782,1753789876826,-7020.17,0.00022,7]
[375935783,1753789876835,-153.0,0.00022,2]
[375935784,1753789876845,-200.12320706,0.00022,2]
[375935785,1753789876855,-28265.47,0.00022,2]
[375935786,1753789876865,-3101.6,0.00022,7]
[375935787,1753789876875,-1577.18,0.00022,7]
[375935788,1753789876885,-214.91980558,0.00022,7]
[375935789,1753789876895,-12637.12721421,0.00022,7]
[375935790,1753789876905,-460.5085953,0.00022,7]
[375935791,1753789876915,-6071.47,0.00022,2]
[375935792,1753789876924,-210.0,0.00022,2]
[375935793,1753789876934,-761.0,0.00022025,2]
[375935794,1753789876943,-1628.4,0.00022031,4]
[375935795,1753789876953,-150.884,0.00022041,2]
[375935796,1753789876963,-250.0,0.00022041,2]
[375935797,1753789876972,-150.0,0.00022041,2]
[375935798,1753789877271,-246.136,0.00022041,2]
[375935799,1753789877286,-244.179,0.00022041,2]
[375935800,1753789877298,-203.58229513,0.00022043,6]
[375935801,1753789877307,-150.329405,0.00022088,2]
[375935802,1753789877316,-1720.0,0.00022116,2]
[375935803,1753789877325,-5000.0,0.00022138,2]
[375935804,1753789877335,-203.58229513,0.0002215,6]
[375935805,1753789877344,-560.0,0.00022177,2]
[375935806,1753789877354,-151.0,0.00022191,7]
[375935807,1753789877363,-151.0,0.00022191,7]
[375935808,1753789877372,-151.0,0.00022191,7]
[375935809,1753789877381,-189.237563,0.00022191,7]
[375935810,1753789877390,-153.468414,0.00022191,7]
[375935811,1753789877400,-152.256007,0.00022191,7]
[375935812,1753789877409,-151.0,0.00022191,7]
[375935813,1753789877418,-151.0,0.00022191,7]
[375935814,1753789877427,-151.0,0.00022191,7]
[375935815,1753789877436,-161.471678,0.00022191,7]
[375935816,1753789877445,-161.471678,0.00022191,7]
[375935817,1753789877455,-151.775212,0.00022191,7]
[375935818,1753789877464,-198.551817,0.00022191,7]
[375935819,1753789877473,-198.551817,0.00022191,7]
[375935820,1753789877483,-460.0,0.00022191,2]
[375935821,1753789877492,-151.0,0.00022191,7]
[375935822,1753789877501,-500.0,0.00022191,2]
[375935823,1753789877510,-151.0,0.00022191,7]
[375935824,1753789877519,-364.300892,0.00022191,7]
[375935825,1753789877528,-364.300892,0.00022191,7]
[375935826,1753789877537,-164.268075,0.00022191,7]
[375935827,1753789877546,-164.268075,0.00022191,7]
[375935828,1753789877556,-155.094317,0.00022191,7]
[375935829,1753789877565,-151.0,0.00022191,7]
[375935830,1753789877573,-151.0,0.00022191,7]
[375935831,1753789877583,-531.77,0.00022191,2]
[375935832,1753789877595,-151.0,0.00022191,7]
[375935833,1753789877606,-322.072395,0.00022191,7]
[375935834,1753789877615,-322.072395,0.00022191,7]
[375935835,1753789877625,-151.0,0.00022191,7]
[375935836,1753789877634,-257.700081,0.00022191,7]
[375935837,1753789877644,-257.700081,0.00022191,7]
[375935838,1753789877654,-334.068826,0.00022191,7]
[375935839,1753789877664,-151.0,0.00022191,7]
[375935840,1753789877674,-212.322871,0.00022191,7]
[375935841,1753789877684,-212.322871,0.00022191,7]
[375935842,1753789877694,-460.0,0.00022191,2]
[375935843,1753789877704,-2951.75,0.00022191,2]
[375935844,1753789877713,-279.880238,0.00022191,7]
[375935845,1753789877722,-279.880238,0.00022191,7]
[375935846,1753789877732,-186.05667024,0.00022191,2]
[375935847,1753789877741,-151.0,0.00022191,7]
[375935848,1753789877751,-549.08136117,0.00022191,2]
[375935849,1753789877760,-202.271616,0.00022191,7]
[375935850,1753789877770,-460.0,0.00022191,2]
[375935851,1753789877779,-943.829808,0.00022191,7]
[375935852,1753789877789,-943.829808,0.00022191,7]
[375935853,1753789877799,-202.271616,0.00022191,7]
[375935854,1753789877808,-460.0,0.00022191,2]